fUSD/lending_fUSD_20240117
["ID","MTS","AMOUNT","RATE_DAILY","PERIOD"]
[311933991,1705509038036,-155.60045288,0.00022895,2]
[311933993,1705509038047,-155.26024303,0.00022895,2]
[311933995,1705509038057,-163.35829217,0.00022895,2]
[311933997,1705509038067,-155.39180179,0.00022895,2]
[311933999,1705509038077,-10558.28603533,0.00022895,2]
[311934002,1705509038088,-689.81785715,0.00022895,2]
[311934004,1705509038099,-3138.18877054,0.00022895,2]
[311934006,1705509038109,-336.35995625,0.00022895,2]
[311934008,1705509038119,-156.42508292,0.00022895,2]
[311934010,1705509038129,-155.4200786,0.00022895,2]
[311934012,1705509038140,-233.75453784,0.00022895,2]
[311934014,1705509038150,-265.13209175,0.00022895,2]
[311934016,1705509038160,-188.07869919,0.00022895,2]
[311934018,1705509038170,-232.92375042,0.00022895,2]
[311934020,1705509038181,-2403.85010472,0.00022895,2]
[311934022,1705509038192,-155.0,0.00022895,2]
[311934025,1705509038202,-155.35930712,0.00022895,2]
[311934027,1705509038211,-310.74885939,0.00022895,2]
[311934029,1705509038221,-766.69037996,0.00022895,2]
[311934031,1705509038231,-360.95758828,0.00022895,2]
[311934033,1705509038241,-4119.5772864,0.00022895,2]
[311934035,1705509038251,-155.42012527,0.00022895,2]
[311934037,1705509038262,-161.9671488,0.00022895,2]
[311934039,1705509038272,-184.06324017,0.00022895,2]
[311934041,1705509038283,-155.0,0.00022895,2]
[311934043,1705509038293,-155.45501439,0.00022895,2]
[311934046,1705509038303,-221.59879115,0.00022895,2]
[311934048,1705509038313,-1586.13861823,0.00022895,2]
[311934050,1705509038323,-155.70488492,0.00022895,2]
[311934052,1705509038334,-676.40668011,0.00022895,2]
[311934054,1705509038344,-158.29612354,0.00022895,2]
[311934056,1705509038354,-7417.04879281,0.00022895,2]
[311934058,1705509038364,-155.0,0.00022895,2]
[311934060,1705509038374,-216.19311875,0.00022895,2]
[311934062,1705509038385,-242.20345528,0.00022895,2]
[311934064,1705509038396,-259.11318057,0.00022895,2]
[311934066,1705509038406,-376.78302695,0.00022895,2]
[311934068,1705509038417,-218.58650666,0.00022895,2]
[311934071,1705509038427,-507.24022175,0.00022895,2]
[311934073,1705509038436,-371.99470695,0.00022895,2]
[311934075,1705509038446,-161.63385363,0.00022895,2]
[311934077,1705509038456,-179.6797404,0.00022895,2]
[311934079,1705509038467,-383.76625096,0.00022895,2]
[311934081,1705509038478,-227.56303529,0.00022895,2]
[311934083,1705509038489,-222.78019491,0.00022896,2]
[311934085,1705509038499,-682.71654889,0.00022896,2]
[311934087,1705509038510,-6306.53401373,0.00022896,2]
[311934089,1705509038520,-5330.96781737,0.00022896,2]
[311934091,1705509038530,-5109.29752061,0.00022896,2]
[311934093,1705509038542,-500.0,0.00022898,2]
[311934096,1705509038552,-245000.0,0.00022899,2]
[311934098,1705509038564,-1576.5948,0.00022899,2]
[311934100,1705509038574,-500.0,0.00022899,2]
[311934102,1705509038585,-250.0,0.000229,2]
[311934104,1705509038595,-152.13927582,0.000229,2]
[311934106,1705509038605,-55555.0,0.000229,2]
[311934108,1705509038615,-192.66512401,0.000229,2]
[311934110,1705509038626,-8016.35829856,0.000229,2]
[311934112,1705509038637,-152.61104082,0.000229,2]
[311934113,1705509038648,-283.91352209,0.000229,2]
[311934115,1705509038659,-6825.62618404,0.000229,2]
[311934117,1705509038669,-1643.58417837,0.000229,2]
[311934119,1705509038681,-200.88840202,0.000229,2]
[311934121,1705509038693,-366.66610892,0.000229,2]
[311934123,1705509038704,-150.0,0.00022905,2]
[311934125,1705509038716,-500.0,0.00022912,2]
[311934127,1705509038728,-500.0,0.00022912,2]
[311934129,1705509038740,-500.0,0.00022912,2]
[311934131,1705509038750,-500.0,0.00022912,2]
[311934133,1705509038761,-500.0,0.00022912,2]
[311934135,1705509038772,-231.09,0.00022912,2]
[311934137,1705509038782,-604.59,0.00022912,2]
[311934139,1705509038794,-500.0,0.00022912,2]
[311934141,1705509038805,-3866.4,0.00022912,2]
[311934144,1705509038815,-500.0,0.00022912,2]
[311934146,1705509038826,-500.0,0.00022912,2]
[311934148,1705509038837,-500.0,0.00022912,2]
[311934199,1705509039279,-500.0,0.00022912,2]
[311934202,1705509039298,-378.07,0.00022912,2]
[311934205,1705509039316,-500.0,0.00022979,2]
[311934207,1705509039326,-173.94330505,0.00022979,2]
[311934209,1705509039336,-500.0,0.00022979,2]
[311934211,1705509039345,-257.58983802,0.00022979,2]
[311934213,1705509039354,-243.20763243,0.0002299,2]
[311934215,1705509039363,-243.20763243,0.0002299,2]
[311934217,1705509039373,-160.02,0.0002299,2]
[311934219,1705509039382,-156.37892987,0.00022997,2]
[311934221,1705509039393,-233.32168862,0.00022997,2]
[311934223,1705509039402,-234.94848214,0.00022997,2]
[311934225,1705509039410,-471.95674199,0.00022997,2]
[311934227,1705509039419,-155.0,0.00022997,2]
[311934229,1705509039429,-209.73639185,0.00022997,2]
[311934231,1705509039438,-372.40939067,0.00022997,2]
[311934233,1705509039447,-876.87900109,0.00022997,2]
[311934235,1705509039456,-524.69666688,0.00022997,2]
[311934237,1705509039466,-2146.928879,0.00022998,2]
[311934239,1705509039475,-266.13862473,0.00022998,2]
[311934241,1705509039485,-251.84001665,0.00022998,2]
[311934243,1705509039497,-394.37787128,0.00022999,2]
[311934245,1705509039507,-1978.25341917,0.00022999,2]
[311934247,1705509039516,-500.0,0.00022999,2]
[311934249,1705509039526,-500.0,0.00022999,2]
[311934251,1705509039535,-500.0,0.00022999,2]
[311934253,1705509039544,-500.0,0.00022999,2]
[311934255,1705509039554,-609.8,0.00022999,2]
[311934257,1705509039564,-300.0,0.00022999,2]
[311934259,1705509039575,-300.0,0.00022999,2]
[311934261,1705509039585,-300.0,0.00022999,2]
[311934263,1705509039595,-161.16567161,0.00022999,2]
[311934265,1705509039605,-300.0,0.00022999,2]
[311934267,1705509039614,-300.0,0.00022999,2]
[311934269,1705509039623,-300.0,0.00022999,2]
[311934271,1705509039633,-1983879.75918859,0.00023,3]
[311934273,1705509039645,-71123.5259897,0.00023,2]
[311934279,1705509039692,-33008.81912549,0.00023,2]
[311934282,1705509039709,-46929.01363666,0.00023,2]
[311934286,1705509039729,-680.58514836,0.00023,2]
[311934301,1705509039940,-500.0,0.0002209,2]
[311934303,1705509039951,-500.0,0.0002209,2]
[311934306,1705509039962,-500.0,0.00022364,2]
[311934308,1705509039972,-500.0,0.00022364,2]
[311934310,1705509039982,-500.0,0.00022499,2]
[311934312,1705509039992,-500.0,0.00022499,2]
[311934314,1705509040003,-9000.07988831,0.00023,2]
[311934317,1705509040021,-500.0,0.00022499,2]
[311934319,1705509040030,-3867.8458179,0.00023,2]
[311934321,1705509040046,-3013.41929894,0.00023,2]
[311934323,1705509040058,-336.69485975,0.00023,2]
[311934326,1705509040070,-265.43330548,0.00023,2]
[311934572,1705509042346,-387.49245434,0.0002209,2]
[311934579,1705509042417,-112.50754566,0.0002209,2]
[311934580,1705509042426,-500.0,0.0002209,2]
[311934581,1705509042435,-500.0,0.00022364,2]
[311934582,1705509042445,-201.68650604,0.00022499,2]
[311934590,1705509042570,-298.31349396,0.00022499,2]
[311934592,1705509042579,-159.0,0.00023,2]
[311934594,1705509042588,-345386.8949117,0.00023,2]
[311934597,1705509042617,-174777.34029167,0.00023,2]
[311934605,1705509042686,-10490.29550011,0.00023,2]
[311934607,1705509042698,-1336.23589952,0.00023,2]
[311934882,1705509045438,-500.0,0.0002209,2]
[311934884,1705509045448,-351.87503421,0.00022999,2]
[311934886,1705509045460,-206.64756482,0.00022999,2]
[311934889,1705509045469,-480.6279637,0.00022999,2]
[311934893,1705509045482,-345.14447152,0.00022999,2]
[311934896,1705509045499,-517.6960006,0.00022999,2]
[311934903,1705509045536,-608.33683848,0.00022999,2]
[311934905,1705509045547,-4185.93724059,0.00022999,2]
[311934907,1705509045559,-443.12746569,0.00022999,2]
[311934909,1705509045572,-1060.03201634,0.00022999,2]
[311934932,1705509045817,-4644.98539841,0.00022999,2]
[311934933,1705509045828,-5278.19345045,0.00022999,2]
[311934935,1705509045840,-949.65,0.00022999,2]
[311935049,1705509046358,-659.5295241,0.00022999,2]
[311935052,1705509046369,-732.66045911,0.00022999,2]
[311935101,1705509046870,-257.60009668,0.00022999,2]
[311935102,1705509046882,-572.85,0.00022999,2]
[311935103,1705509046893,-1444.83402703,0.00022999,2]
[311935105,1705509046906,-415.81338023,0.00022999,2]
[311935107,1705509046916,-382.36740856,0.00022999,2]
[311935109,1705509046925,-783.83479398,0.00023,2]
[311935111,1705509046936,-300.0,0.00023,2]
[311935113,1705509046947,-6018.51353196,0.00023,2]
[311935331,1705509092623,2311.58875002,0.00025263,28]
[311935334,1705509137856,151.0,0.00026156,7]
[311935337,1705509209021,852.04352415,0.00026156,7]
[311935338,1705509211251,463.800488,0.00022999,7]
[311935339,1705509211544,463.800488,0.00023,7]
[311935340,1705509211823,463.800488,0.00026156,7]
[311935341,1705509214117,463.800488,0.00022999,7]
[311935342,1705509214385,463.800488,0.00023,7]
[311935343,1705509214671,463.800488,0.00026156,7]
[311935344,1705509221684,151.0,0.00022999,7]
[311935345,1705509221742,151.0,0.00023,7]
[311935346,1705509221976,151.0,0.00026156,7]
[311935347,1705509227007,322.58577974,0.00026156,7]
[311935350,1705509274433,500.0,0.00022156,7]
[311935351,1705509274771,500.0,0.00022784,7]
[311935352,1705509275098,500.0,0.00023411,7]
[311935353,1705509275406,500.0,0.00024039,7]
[311935354,1705509275693,500.0,0.00024666,7]
[311935355,1705509275987,500.0,0.00025294,7]
[311935356,1705509276276,500.0,0.00025921,7]
[311935357,1705509276555,500.0,0.00026549,7]
[311935360,1705509389298,324.660341,0.00022997,7]
[311935361,1705509389554,324.660341,0.00023,7]
[311935362,1705509389843,324.660341,0.00026,7]
[311935363,1705509392403,324.660341,0.00022997,7]
[311935364,1705509392689,324.660341,0.00023,7]
[311935365,1705509392943,324.660341,0.00026,7]
[311935366,1705509394005,205.0,0.00026207,7]
[311935367,1705509396203,189.199108,0.00022997,7]
[311935370,1705509438166,151.0,0.00022997,7]
[311935371,1705509438700,151.0,0.00023,7]
[311935372,1705509438779,174.22734,0.00025908,7]
[311935373,1705509495510,151.0,0.00022997,7]
[311935374,1705509495803,205.189269,0.00023,7]
[311935375,1705509573988,500.0,0.0002209,10]
[311935376,1705509574047,500.0,0.00022364,10]
[311935377,1705509574194,481.96735978,0.00022638,10]
[311935378,1705509582817,151.0,0.00022997,7]
[311935379,1705509583082,151.0,0.00023,7]
[311935380,1705509584168,151.0,0.00025,7]
[311935381,1705509586895,151.0,0.00022997,7]
[311935382,1705509587261,151.0,0.00023,7]
[311935383,1705509587577,151.0,0.00025,7]
[311935384,1705509597053,227.262239,0.00022997,7]
[311935385,1705509597326,227.262239,0.00023,7]
[311935386,1705509597608,227.262239,0.00025,7]
[311935387,1705509600125,227.262239,0.00022997,7]
[311935388,1705509600431,227.262239,0.00023,7]
[311935389,1705509600789,227.262239,0.00025,7]
[311935404,1705509621626,249.30323042,0.00023672,7]
[311935406,1705509626605,249.30323042,0.00024448,9]
[311935413,1705509631606,249.30323042,0.00025223,10]
[311935414,1705509636603,249.30323042,0.00025998,11]
[311935417,1705509646822,400.0,0.000218,7]
[311935418,1705509649178,900.0,0.000219,7]
[311935419,1705509651517,1400.0,0.000225,8]
[311935420,1705509653820,1800.0,0.000226,8]
[311935421,1705509656131,2300.0,0.000227,8]
[311935422,1705509658417,400.0,0.000228,8]
[311935423,1705509660540,400.0,0.000229,8]
[311935431,1705509754237,205.0,0.00025735,8]
[311935434,1705509806634,159.083567,0.00022996,7]
[311935435,1705509806914,159.083567,0.00022997,7]
[311935436,1705509807213,159.083567,0.00023,7]
[311935437,1705509807497,159.083567,0.0002418,7]
[311935438,1705509809698,159.083567,0.00022996,7]
[311935439,1705509810327,159.083567,0.00022997,7]
[311935440,1705509810609,159.083567,0.00023,7]
[311935441,1705509810905,159.083567,0.0002418,7]
[311935449,1705509946729,642.35,0.0001826,2]
[311935452,1705509979760,151.0,0.00022611,7]
[311935454,1705509993127,151.0,0.00022611,7]
[311935455,1705509993516,151.0,0.00022773,7]
[311935456,1705509993674,151.0,0.00022995,7]
[311935457,1705509994226,151.0,0.00022996,7]
[311935458,1705509994323,151.0,0.00022997,7]
[311935459,1705509994540,151.0,0.00022998,7]
[311935460,1705509994775,151.0,0.00023,7]
[311935461,1705509995080,151.0,0.00024143,7]
[311935462,1705509995348,151.0,0.0002692,7]
[311935463,1705509995888,151.0,0.00022611,7]
[311935464,1705509996192,151.0,0.00022773,7]
[311935465,1705509996810,151.0,0.00022995,7]
[311935466,1705509997080,151.0,0.00022996,7]
[311935467,1705509997342,185.033282,0.00022997,7]
[311935470,1705510042374,155.63464876,0.00018475,2]
[311935474,1705510086919,151.0,0.00029557,120]
[311935476,1705510114234,205.0,0.00025396,9]
[311935480,1705510152851,393.85529835,0.00018374,2]
[311935481,1705510160582,151.0,0.00021989,7]
[311935482,1705510160916,151.0,0.0002226,7]
[311935483,1705510161256,151.0,0.00022535,7]
[311935484,1705510161515,151.0,0.00022995,7]
[311935485,1705510161781,151.0,0.00022996,7]
[311935486,1705510162040,151.0,0.00022998,7]
[311935487,1705510165984,163.562188,0.00021989,7]
[311935488,1705510166218,163.562188,0.0002226,7]
[311935489,1705510166514,163.562188,0.00022535,7]
[311935490,1705510166836,163.562188,0.00022995,7]
[311935492,1705510167138,163.562188,0.00022996,7]
[311935493,1705510167413,163.562188,0.00022998,7]
[311935494,1705510167794,163.562188,0.00023,7]
[311935495,1705510167952,163.562188,0.00024178,7]
[311935496,1705510168822,163.562188,0.00021989,7]
[311935497,1705510169100,163.562188,0.0002226,7]
[311935498,1705510169635,163.562188,0.00022535,7]
[311935499,1705510169905,163.562188,0.00022995,7]
[311935500,1705510170253,163.562188,0.00022996,7]
[311935501,1705510170543,163.562188,0.00022998,7]
[311935502,1705510170924,163.562188,0.00023,7]
[311935503,1705510171068,163.562188,0.00024178,7]
[311935507,1705510225496,3186.46864652,0.00017817,2]
[311935508,1705510226520,419.33476208,0.00017817,2]
[311935510,1705510231933,-2306.5799976,0.00018547,2]
[311935511,1705510231967,-1178.12872526,0.00018547,2]
[311935512,1705510231985,-174.18644024,0.00018547,2]
[311935513,1705510232008,-288.92756394,0.00018548,2]
[311935514,1705510232027,-697.79476583,0.00018548,2]
[311935515,1705510232048,-202.6537974,0.00018548,2]
[311935516,1705510232072,-532.82595043,0.00018548,2]
[311935517,1705510232088,-235.12703746,0.00018548,2]
[311935518,1705510232109,-527.85681623,0.00018548,2]
[311935519,1705510232144,-312.12835233,0.00018548,2]
[311935520,1705510232176,-525.13031087,0.00018549,2]
[311935521,1705510232198,-1045.24138243,0.00018549,2]
[311935522,1705510232212,-6504.0,0.00018549,2]
[311935523,1705510232229,-4349.26887961,0.00018549,2]
[311935524,1705510232246,-501.38582748,0.0001855,2]
[311935525,1705510232266,-651.53408255,0.0001855,2]
[311935526,1705510232279,-758.86950263,0.0001855,2]
[311935527,1705510232299,-543.19705412,0.0001855,2]
[311935528,1705510232318,-361.67427466,0.0001855,2]
[311935529,1705510232346,-2020.14907703,0.0001855,2]
[311935530,1705510232368,-418.05178651,0.00018551,2]
[311935531,1705510232386,-3859.00309907,0.00018551,2]
[311935532,1705510232403,-263.3780082,0.00018551,2]
[311935533,1705510232419,-4625.83140559,0.00018551,2]
[311935534,1705510232437,-1914.85650932,0.00018551,2]
[311935535,1705510232457,-220.39096062,0.00018551,2]
[311935536,1705510232470,-388.83103681,0.00018551,2]
[311935537,1705510232497,-523.90953514,0.00018552,2]
[311935538,1705510232526,-159.80565558,0.00018552,2]
[311935539,1705510232544,-155.0,0.00018552,2]
[311935540,1705510232563,-1203.42619613,0.00018552,2]
[311935541,1705510232591,-5333.14230342,0.00018552,2]
[311935542,1705510232614,-473.20829439,0.00018553,2]
[311935543,1705510232631,-6437.51501996,0.00018553,2]
[311935544,1705510232654,-766.57403031,0.00018553,2]
[311935545,1705510232675,-10524.16924153,0.00018553,2]
[311935546,1705510232694,-581.89521876,0.00018553,2]
[311935547,1705510232715,-3328.83599475,0.00018553,2]
[311935548,1705510232728,-2137.50172729,0.00018554,2]
[311935549,1705510232749,-302.20853106,0.00018554,2]
[311935550,1705510232771,-523.73781275,0.00018554,2]
[311935551,1705510232786,-5694.79534937,0.00018554,2]
[311935552,1705510232806,-2087.98129389,0.00018554,2]
[311935553,1705510232832,-160.6463697,0.00018554,2]
[311935554,1705510232848,-2619.74608901,0.00018554,2]
[311935555,1705510232866,-400.49631335,0.00018554,2]
[311935556,1705510232890,-136.09226754,0.0001856,2]
[311935557,1705510232931,-27.85573104,0.0001856,2]
[311935558,1705510232949,-339.35519007,0.00018561,2]
[311935559,1705510233026,-1056511.610543,0.00018561,2]
[311935560,1705510233048,-223105.45635766,0.00018562,2]
[311935561,1705510233069,-8513.36504574,0.00018563,2]
[311935562,1705510233087,-312.13,0.00018564,2]
[311935563,1705510233108,-30357.94347604,0.00018566,2]
[311935564,1705510233124,-150.0,0.00018569,2]
[311935565,1705510233143,-393.15011915,0.000186,2]
[311935566,1705510233161,-155.63464867,0.00018682,2]
[311935567,1705510233187,-155.63464867,0.00018888,2]
[311935568,1705510233203,-233.07,0.00018888,2]
[311935569,1705510233220,-150.99,0.00018888,2]
[311935570,1705510233236,-1024.62,0.00018888,2]
[311935571,1705510233256,-155.63464867,0.00019095,2]
[311935572,1705510233269,-3676.57970602,0.000192,2]
[311935573,1705510233292,-155.63464867,0.00019301,2]
[311935574,1705510233315,-155.63464867,0.00019508,2]
[311935575,1705510233331,-23900.0,0.000197,2]
[311935576,1705510233350,-155.63464867,0.00019714,2]
[311935577,1705510233367,-1746.68,0.00019856,2]
[311935578,1705510233392,-155.63464867,0.00019921,2]
[311935579,1705510233409,-155.0,0.0002,2]
[311935580,1705510233427,-281.17948363,0.0002,2]
[311935581,1705510233449,-155.0,0.0002,2]
[311935582,1705510233464,-155.0,0.0002,2]
[311935583,1705510233492,-162.49,0.00020024,2]
[311935584,1705510233507,-315.44,0.00020027,2]
[311935585,1705510233532,-250.0,0.00020092,2]
[311935586,1705510233546,-155.63464867,0.00020127,2]
[311935587,1705510233574,-645.92,0.00020166,2]
[311935588,1705510233592,-500.0,0.00020274,2]
[311935589,1705510233617,-155.63464867,0.00020334,2]
[311935590,1705510233633,-166.62,0.00020349,2]
[311935591,1705510233660,-160.89,0.00020393,2]
[311935592,1705510233681,-352.21,0.00020399,2]
[311935593,1705510233703,-301.47,0.00020409,2]
[311935594,1705510233720,-205.0,0.00020452,2]
[311935595,1705510233743,-150.53,0.00020487,2]
[311935596,1705510233765,-250.0,0.000205,2]
[311935597,1705510233790,-642.35,0.00020524,2]
[311935598,1705510233810,-155.63464867,0.0002054,2]
[311935599,1705510233823,-499.99,0.00020671,2]
[311935600,1705510233852,-155.63464867,0.00020747,2]
[311935601,1705510233868,-162.49,0.00020824,2]
[311935602,1705510233886,-150.53,0.00020828,2]
[311935603,1705510233900,-647.79,0.0002089,2]
[311935604,1705510233919,-500.0,0.00020901,2]
[311935605,1705510233934,-160.48,0.00020951,2]
[311935606,1705510233945,-155.63464867,0.00020953,2]
[311935607,1705510233983,-165.45,0.00020981,2]
[311935608,1705510233998,-155.63464867,0.0002116,2]
[311935609,1705510234016,-150.53,0.0002117,2]
[311935610,1705510234035,-2465.28086661,0.00021328,2]
[311935611,1705510234051,-160.89,0.00021352,2]
[311935612,1705510234078,-155.63464867,0.00021366,2]
[311935613,1705510234092,-1000.0,0.0002137,2]
[311935614,1705510234111,-301.47,0.00021388,2]
[311935615,1705510234130,-150.53,0.00021511,2]
[311935616,1705510234144,-500.0,0.00021529,2]
[311935617,1705510234164,-176.27,0.0002154,2]
[311935618,1705510234184,-513.66,0.0002154,2]
[311935619,1705510234198,-155.63464867,0.00021573,2]
[311935620,1705510234217,-2061.8238,0.00021579,2]
[311935621,1705510234243,-473.8529,0.00021579,2]
[311935622,1705510234258,-162.49,0.00021625,2]
[311935623,1705510234273,-3759.98,0.00021644,2]
[311935624,1705510234299,-9670.29138533,0.00021679,2]
[311935625,1705510234329,-155.63464867,0.00021779,2]
[311935626,1705510234348,-13343.4071,0.00021787,2]
[311935627,1705510234381,-251.1202,0.00021787,2]
[311935628,1705510234402,-199.15149835,0.000218,2]
[311935629,1705510234417,-2500.0,0.000218,2]
[311935630,1705510234435,-894.60054605,0.00021807,2]
[311935631,1705510234450,-200.88840202,0.00021815,2]
[311935632,1705510234463,-10776.82075039,0.00021815,2]
[311935633,1705510234478,-161.94573961,0.00021817,4]
[311935634,1705510234495,-1973.64680747,0.00021817,2]
[311935635,1705510234513,-3831.35549795,0.00021817,2]
[311935636,1705510234535,-475.83950502,0.00021817,2]
[311935637,1705510234566,-199.15149831,0.00021823,2]
[311935638,1705510234593,-199.15149831,0.00021845,2]
[311935639,1705510234617,-150.53,0.00021853,2]
[311935640,1705510234633,-199.15149831,0.00021868,2]
[311935641,1705510234660,-1576.5948,0.00021889,2]
[311935642,1705510234682,-10390.3299,0.00021889,2]
[311935643,1705510234705,-199.15149831,0.0002189,2]
[311935644,1705510234738,-22681.68741685,0.00021894,2]
[311935652,1705510238046,-384.58030079,0.00018546,2]
[311935653,1705510238062,-406.831252,0.00018559,2]
[311935654,1705510238082,-693.02,0.0001856,2]
[311935655,1705510238106,-7465.28,0.0001856,2]
[311935656,1705510238126,-2265.81,0.00020409,2]
[311935657,1705510238150,-238.46567249,0.00021807,2]
[311935658,1705510238176,-47318.31258315,0.00021894,2]
[311935659,1705510238197,-223.08028286,0.00021897,2]
[311935660,1705510238221,-155.0,0.00021897,2]
[311935661,1705510238239,-376.11195413,0.00021897,2]
[311935662,1705510238258,-204.28991244,0.00021897,2]
[311935663,1705510238273,-235.98748933,0.00021897,2]
[311935664,1705510238303,-452.47532212,0.00021897,2]
[311935665,1705510238322,-265.7489314,0.00021897,2]
[311935666,1705510238340,-284.94387403,0.00021897,2]
[311935667,1705510238362,-633.84130694,0.00021897,2]
[311935668,1705510238383,-196.61301684,0.00021897,2]
[311935669,1705510238397,-196.30617543,0.00021897,2]
[311935670,1705510238414,-386.61135731,0.00021897,2]
[311935671,1705510238434,-156.79778886,0.00021897,2]
[311935672,1705510238454,-185.11529179,0.00021897,2]
[311935673,1705510238476,-236.60772836,0.00021897,2]
[311935674,1705510238497,-496.3767871,0.00021897,2]
[311935675,1705510238520,-1766.13596665,0.00021897,2]
[311935676,1705510238541,-183.31936431,0.00021897,2]
[311935677,1705510238561,-158.96333554,0.00021897,2]
[311935678,1705510238581,-155.39285442,0.00021897,2]
[311935679,1705510238605,-940.13112153,0.00021898,2]
[311935680,1705510238620,-1144.90565406,0.00021898,2]
[311935681,1705510238637,-2296.02494857,0.00021898,2]
[311935682,1705510238657,-365.22829566,0.00021899,2]
[311935683,1705510238673,-4486.26727607,0.00021899,2]
[311935684,1705510238702,-189.10579447,0.000219,2]
[311935685,1705510238719,-29514.07716812,0.000219,2]
[311935687,1705510239245,-13067.90918983,0.000219,2]
[311935688,1705510239341,-2410.01001848,0.000219,2]
[311935689,1705510239361,-14172.79354968,0.000219,2]
[311935690,1705510239388,-5692.9448565,0.000219,2]
[311935691,1705510239410,-42562.6732522,0.000219,2]
[311935692,1705510239462,-412.92083445,0.000219,2]
[311935693,1705510239492,-610.77352403,0.000219,2]
[311935697,1705510239600,-425.0484,0.000219,2]
[311935698,1705510239622,-5000.0,0.000219,2]
[311935699,1705510239695,-2354.82716972,0.000219,2]
[311935700,1705510239732,-13115.19199533,0.000219,2]
[311935701,1705510239746,-388.83103681,0.00021907,2]
[311935702,1705510239762,-454.47,0.00021915,2]
[311935703,1705510239782,-524.82,0.00021917,2]
[311935704,1705510239798,-500.0,0.00021917,2]
[311935705,1705510239813,-500.0,0.00021917,2]
[311935706,1705510239836,-500.0,0.00021917,2]
[311935707,1705510239870,-500.0,0.00021917,2]
[311935708,1705510239886,-500.0,0.00021917,2]
[311935709,1705510239908,-509.15679097,0.00021917,2]
[311935710,1705510239931,-511.17157701,0.00021917,2]
[311935711,1705510239966,-500.0,0.00021917,2]
[311935712,1705510239981,-500.0,0.00021917,2]
[311935713,1705510239997,-500.0,0.00021917,2]
[311935714,1705510240010,-500.0,0.00021917,2]
[311935715,1705510240022,-500.0,0.00021917,2]
[311935716,1705510240042,-524.64202986,0.00021917,2]
[311935717,1705510240058,-500.0,0.00021917,2]
[311935718,1705510240083,-500.0,0.00021917,2]
[311935719,1705510240099,-500.0,0.00021917,2]
[311935720,1705510240113,-500.0,0.00021917,2]
[311935721,1705510240126,-500.0,0.00021917,2]
[311935722,1705510240157,-502.05733163,0.00021917,2]
[311935723,1705510240171,-531.82422524,0.00021917,2]
[311935724,1705510240185,-500.0,0.00021917,2]
[311935726,1705510240197,-500.0,0.00021917,2]
[311935727,1705510240208,-500.0,0.00021917,2]
[311935730,1705510240222,-500.0,0.00021917,2]
[311935731,1705510240233,-500.0,0.00021917,2]
[311935732,1705510240246,-503.36765065,0.00021917,2]
[311935733,1705510240258,-500.0,0.00021917,2]
[311935734,1705510240282,-500.0,0.00021917,2]
[311935735,1705510240306,-500.0,0.00021917,2]
[311935736,1705510240328,-500.0,0.00021917,2]
[311935737,1705510240344,-500.0,0.00021917,2]
[311935738,1705510240360,-500.0,0.00021917,2]
[311935739,1705510240379,-500.0,0.00021917,2]
[311935740,1705510240399,-521.71525092,0.00021917,2]
[311935741,1705510240421,-500.0,0.00021917,2]
[311935742,1705510240444,-500.0,0.00021917,2]
[311935743,1705510240455,-500.0,0.00021917,2]
[311935744,1705510240482,-500.0,0.00021917,2]
[311935745,1705510240494,-616.86085634,0.00021917,2]
[311935746,1705510240507,-500.0,0.00021917,2]
[311935747,1705510240530,-625.45,0.00021917,2]